fUST/lending_fUST_20251120
["ID","MTS","AMOUNT","RATE_DAILY","PERIOD"]
[394451036,1763587707312,-500.0,0.00010869,2]
[394451037,1763587707333,-500.0,0.00010869,2]
[394451038,1763587707357,-150.39962039,0.00010869,2]
[394451053,1763587723976,7940.11868809,0.00040114,120]
[394451076,1763587811993,286.79113442,0.00040114,120]
[394451077,1763587818324,151.0,0.00040114,120]
[394451078,1763587818420,250.0,0.00040114,120]
[394451079,1763587818925,156.587,0.00040114,120]
[394451080,1763587819028,250.0,0.00040114,120]
[394451081,1763587819548,162.380719,0.00040114,120]
[394451082,1763587819614,250.0,0.00040114,120]
[394451083,1763587819736,250.0,0.00040114,120]
[394451084,1763587820259,250.0,0.00040114,120]
[394451085,1763587820480,250.0,0.00040114,120]
[394451086,1763587820648,168.3888056,0.00040114,120]
[394451087,1763587820888,250.0,0.00040114,120]
[394451088,1763587821008,250.0,0.00040114,120]
[394451089,1763587821310,174.61919141,0.00040114,120]
[394451090,1763587821694,250.0,0.00040114,120]
[394451091,1763587821988,181.08010149,0.00040114,120]
[394451092,1763587822619,187.78006525,0.00040114,120]
[394451093,1763587822788,250.0,0.00040114,120]
[394451094,1763587823250,194.72792766,0.00040114,120]
[394451095,1763587823418,250.0,0.00040114,120]
[394451096,1763587823911,201.93286099,0.00040114,120]
[394451097,1763587824526,209.40437684,0.00040114,120]
[394451098,1763587825229,217.15233878,0.00040114,120]
[394451099,1763587825876,225.18697532,0.00040114,120]
[394451100,1763587828148,500.0,0.00040114,120]
[394451101,1763587828776,500.0,0.00040114,120]
[394451102,1763587829420,500.0,0.00040115,120]
[394451103,1763587830047,500.0,0.00040115,120]
[394451104,1763587830655,500.0,0.00040115,120]
[394451156,1763587831569,500.0,0.00040115,120]
[394451189,1763587831882,165.16953162,0.00040115,120]
[394451199,1763587831952,500.0,0.00040115,120]
[394451206,1763587832813,500.0,0.00040115,120]
[394451207,1763587833240,500.0,0.00040115,120]
[394451208,1763587834261,500.0,0.00040115,120]
[394451209,1763587834888,500.0,0.00040115,120]
[394451210,1763587835546,500.0,0.00040115,120]
[394451211,1763587836211,500.0,0.00040115,120]
[394451217,1763587837586,-1167.13952535,0.00010421,2]
[394451218,1763587837595,-223.35445649,0.00010422,2]
[394451219,1763587837605,-648.41084742,0.00010423,2]
[394451220,1763587837614,-2074.91471173,0.00010423,2]
[394451221,1763587837623,-1200.0,0.00010758,2]
[394451222,1763587837633,-2500.0,0.00010759,2]
[394451223,1763587837642,-151.0,0.00010807,2]
[394451224,1763587837651,-305.33017534,0.00010807,2]
[394451225,1763587837661,-282.31032794,0.00010867,2]
[394451226,1763587837670,-500.0,0.00010867,2]
[394451227,1763587837680,-500.0,0.00010867,2]
[394451228,1763587837689,-500.0,0.00010867,2]
[394451229,1763587837698,-500.0,0.00010867,2]
[394451230,1763587837707,-376.66766837,0.00010867,2]
[394451232,1763587837716,-1353.01381063,0.00010867,2]
[394451234,1763587837726,-500.0,0.00010867,2]
[394451235,1763587837734,-500.0,0.00010867,2]
[394451237,1763587837743,-430.2172245,0.00010867,2]
[394451238,1763587837752,-1353.01381063,0.00010867,2]
[394451239,1763587837762,-500.0,0.00010867,2]
[394451240,1763587837771,-500.0,0.00010867,2]
[394451241,1763587837780,-500.0,0.00010867,2]
[394451242,1763587837788,-500.0,0.00010867,2]
[394451243,1763587837798,-1353.01381063,0.00010867,2]
[394451244,1763587837807,-500.0,0.00010867,2]
[394451245,1763587837818,-500.0,0.00010867,2]
[394451246,1763587837827,-500.0,0.00010867,2]
[394451247,1763587837836,-1353.01381063,0.00010867,2]
[394451248,1763587837845,-500.0,0.00010867,2]
[394451249,1763587837854,-500.0,0.00010867,2]
[394451250,1763587837863,-500.0,0.00010867,2]
[394451251,1763587837873,-500.0,0.00010867,2]
[394451252,1763587837882,-1353.01381063,0.00010867,2]
[394451253,1763587837891,-500.0,0.00010867,2]
[394451254,1763587837901,-500.0,0.00010867,2]
[394451255,1763587837911,-1353.01381063,0.00010867,2]
[394451256,1763587837920,-500.0,0.00010867,2]
[394451257,1763587837929,-1353.01381063,0.00010867,2]
[394451258,1763587837938,-500.0,0.00010867,2]
[394451259,1763587837947,-1353.01381063,0.00010867,2]
[394451260,1763587837956,-511.4010332,0.00010867,2]
[394451261,1763587837965,-1353.01381063,0.00010867,2]
[394451262,1763587837974,-1353.01381063,0.00010867,2]
[394451263,1763587837983,-1353.01381063,0.00010867,2]
[394451264,1763587837997,-500.0,0.00010867,2]
[394451265,1763587838006,-1353.01381063,0.00010867,2]
[394451266,1763587838015,-500.0,0.00010867,2]
[394451267,1763587838024,-1353.01381063,0.00010867,2]
[394451268,1763587838034,-500.0,0.00010867,2]
[394451269,1763587838044,-1353.01381063,0.00010867,2]
[394451270,1763587838056,-500.0,0.00010867,2]
[394451271,1763587838066,-1353.01381063,0.00010867,2]
[394451272,1763587838076,-1353.01381063,0.00010867,2]
[394451273,1763587838087,-500.0,0.00010867,2]
[394451274,1763587838096,-1353.01381063,0.00010867,2]
[394451275,1763587838106,-500.0,0.00010867,2]
[394451276,1763587838115,-1353.01381063,0.00010867,2]
[394451277,1763587838125,-500.0,0.00010867,2]
[394451278,1763587838135,-1353.01381063,0.00010867,2]
[394451279,1763587838144,-1353.01381063,0.00010867,2]
[394451280,1763587838153,-316.51366773,0.00010867,2]
[394451281,1763587838162,-1353.01381063,0.00010867,2]
[394451282,1763587838171,-500.0,0.00010867,2]
[394451283,1763587838180,-1353.01381063,0.00010867,2]
[394451284,1763587838189,-1353.01381063,0.00010867,2]
[394451285,1763587838198,-1353.01381063,0.00010867,2]
[394451286,1763587838207,-500.0,0.00010867,2]
[394451287,1763587838216,-1353.01381063,0.00010867,2]
[394451288,1763587838225,-1353.01381063,0.00010867,2]
[394451289,1763587838235,-1353.01381063,0.00010867,2]
[394451290,1763587838243,-1353.01381063,0.00010867,2]
[394451291,1763587838253,-1353.01381063,0.00010867,2]
[394451292,1763587838262,-1353.01381063,0.00010867,2]
[394451293,1763587838271,-300.0,0.00010867,2]
[394451294,1763587838280,-300.0,0.00010867,2]
[394451295,1763587838288,-500.0,0.00010868,2]
[394451296,1763587838298,-26509.77334899,0.0001087,2]
[394451297,1763587838309,-670.07,0.0001087,2]
[394451298,1763587838336,-1353.01381063,0.00010867,2]
[394451299,1763587838346,-826360.15864943,0.0001087,2]
[394451300,1763587838355,-500.0,0.00010873,2]
[394451301,1763587838364,-500.0,0.00010873,2]
[394451302,1763587838373,-500.0,0.00010873,2]
[394451303,1763587838382,-500.0,0.00010873,2]
[394451304,1763587838391,-209.63404201,0.00010873,2]
[394451305,1763587838401,-500.0,0.00010873,2]
[394451306,1763587838410,-500.0,0.00010873,2]
[394451307,1763587838419,-500.0,0.00010873,2]
[394451308,1763587838428,-506.44130238,0.00010873,2]
[394451309,1763587838437,-500.0,0.00010873,2]
[394451310,1763587838446,-500.65210024,0.00010873,2]
[394451311,1763587838456,-500.79496343,0.00010873,2]
[394451312,1763587838465,-500.0,0.00010873,2]
[394451313,1763587838473,-505.89614439,0.00010873,2]
[394451314,1763587838483,-500.0,0.00010873,2]
[394451315,1763587838491,-500.0,0.00010873,2]
[394451316,1763587838500,-500.0,0.00010873,2]
[394451317,1763587838510,-477.96281816,0.00010873,2]
[394451318,1763587838518,-500.0,0.00010873,2]
[394451319,1763587838527,-500.0,0.00010873,2]
[394451320,1763587838536,-500.0,0.00010873,2]
[394451321,1763587838545,-263.70606165,0.00010873,2]
[394451322,1763587838554,-500.0,0.00010873,2]
[394451323,1763587838563,-500.0,0.00010873,2]
[394451324,1763587838573,-500.0,0.00010873,2]
[394451325,1763587838582,-500.0,0.00010873,2]
[394451326,1763587838591,-225.07445679,0.00010873,2]
[394451327,1763587838600,-500.0,0.00010873,2]
[394451328,1763587838609,-500.0,0.00010873,2]
[394451329,1763587838618,-500.0,0.00010873,2]
[394451330,1763587838627,-184.54030067,0.00010873,2]
[394451331,1763587838636,-203.35998096,0.00010971,2]
[394451332,1763587838645,-366.04796573,0.00010971,2]
[394451333,1763587838656,-650.75193908,0.00010971,2]
[394451334,1763587838665,-151.0,0.00010972,2]
[394451335,1763587838674,-500.0,0.00010973,2]
[394451336,1763587838683,-151.0,0.00010991,2]
[394451337,1763587838692,-151.0,0.00010993,2]
[394451338,1763587838701,-154.073443,0.00010994,2]
[394451339,1763587838710,-154.692797,0.00010994,2]
[394451340,1763587838719,-222.905724,0.00010994,2]
[394451341,1763587838729,-28852.5349844,0.00011063,2]
[394451342,1763587838738,-151.0,0.000111,2]
[394451343,1763587838748,-151.0,0.000111,2]
[394451344,1763587838758,-151.0,0.000111,2]
[394451345,1763587838767,-500.0,0.00011142,2]
[394451346,1763587838776,-1000.0,0.00011199,2]
[394451347,1763587838785,-1000.0,0.00011199,2]
[394451348,1763587838795,-1000.0,0.00011199,2]
[394451349,1763587838804,-1000.0,0.00011199,2]
[394451350,1763587838815,-1000.0,0.00011199,2]
[394451351,1763587838824,-1000.0,0.00011199,2]
[394451352,1763587838834,-1000.0,0.00011199,2]
[394451353,1763587838844,-1000.0,0.00011199,2]
[394451354,1763587838853,-1000.0,0.00011199,2]
[394451355,1763587838862,-1000.0,0.00011199,2]
[394451356,1763587838872,-1000.0,0.00011199,2]
[394451357,1763587838881,-1000.0,0.00011199,2]
[394451358,1763587838891,-1000.0,0.00011199,2]
[394451359,1763587838900,-1000.0,0.00011199,2]
[394451360,1763587838909,-1000.0,0.00011199,2]
[394451361,1763587838918,-1000.0,0.00011199,2]
[394451362,1763587838927,-1000.0,0.00011199,2]
[394451363,1763587838936,-1000.0,0.00011199,2]
[394451364,1763587838945,-1000.0,0.00011199,2]
[394451365,1763587838954,-1000.0,0.00011199,2]
[394451366,1763587838963,-151.0,0.000112,2]
[394451367,1763587838972,-151.0,0.000113,2]
[394451368,1763587838981,-151.0,0.000113,2]
[394451369,1763587838990,-1876.3514694,0.0001135,2]
[394451370,1763587838999,-2251.83879319,0.00011353,2]
[394451371,1763587839008,-151.0,0.000114,2]
[394451372,1763587839018,-151.0,0.000114,2]
[394451373,1763587839027,-228.16824617,0.00011411,2]
[394451374,1763587839036,-500.0,0.00011416,2]
[394451375,1763587839047,-1000.0,0.00011421,2]
[394451376,1763587839056,-1000.0,0.00011421,2]
[394451377,1763587839068,-1000.0,0.00011421,2]
[394451378,1763587839077,-1000.0,0.00011421,2]
[394451379,1763587839087,-500.0,0.00011421,2]
[394451380,1763587839097,-309.59582408,0.00011421,2]
[394451381,1763587839106,-999.98196993,0.00011421,2]
[394451382,1763587839115,-288.97880943,0.00011421,2]
[394451383,1763587839126,-508.79709345,0.00011421,2]
[394451384,1763587839136,-1000.0,0.00011421,2]
[394451385,1763587839145,-1006.66898639,0.00011421,2]
[394451387,1763587839154,-1000.0,0.00011421,2]
[394451403,1763587839308,-1000.0,0.00011421,2]
[394451405,1763587839320,-489.50585718,0.00011421,2]
[394451407,1763587839329,-904.88663939,0.00011421,2]
[394451409,1763587839338,-1008.79392546,0.00011421,2]
[394451411,1763587839347,-579.97833016,0.00011421,2]
[394451412,1763587839357,-1000.0,0.00011421,2]
[394451413,1763587839366,-1000.0,0.00011421,2]
[394451414,1763587839375,-1000.0,0.00011421,2]
[394451415,1763587839384,-1000.0,0.00011421,2]
[394451416,1763587839394,-151.0,0.000115,2]
[394451417,1763587839403,-418.77890386,0.00011521,2]
[394451418,1763587839413,-868.60331554,0.00011575,2]
[394451419,1763587839423,-151.0,0.000116,2]
[394451420,1763587839432,-151.0,0.000116,2]
[394451421,1763587839442,-151.0,0.000116,2]
[394451422,1763587839451,-500.0,0.0001169,2]
[394451423,1763587839461,-151.0,0.000118,2]
[394451425,1763587839472,-459.34990061,0.00011817,2]
[394451427,1763587839482,-826.8298211,0.00011817,2]
[394451428,1763587839494,-1469.91968196,0.00011817,2]
[394451429,1763587839503,-484.62532118,0.00011817,2]
[394451430,1763587839514,-872.32557812,0.00011817,2]
[394451431,1763587839524,-1550.80102777,0.00011817,2]
[394451432,1763587839533,-1680.0,0.00011834,2]
[394451433,1763587839543,-300.0,0.00011849,2]
[394451434,1763587839552,-300.0,0.00011849,2]
[394451435,1763587839562,-300.0,0.00011849,2]
[394451436,1763587839576,-300.0,0.00011849,2]
[394451437,1763587839585,-300.0,0.00011849,2]
[394451438,1763587839595,-300.0,0.00011849,2]
[394451439,1763587839604,-300.0,0.00011849,2]
[394451440,1763587839613,-300.0,0.00011849,2]
[394451441,1763587839623,-300.0,0.00011849,2]
[394451442,1763587839633,-300.0,0.00011849,2]
[394451443,1763587839642,-300.0,0.00011849,2]
[394451444,1763587839651,-300.0,0.00011849,2]
[394451445,1763587839660,-300.0,0.00011849,2]
[394451446,1763587839670,-300.0,0.00011849,2]
[394451447,1763587839679,-300.0,0.00011849,2]
[394451448,1763587839688,-300.0,0.00011849,2]
[394451449,1763587839698,-300.0,0.00011849,2]
[394451450,1763587839707,-300.0,0.00011849,2]
[394451451,1763587839716,-300.0,0.00011849,2]
[394451452,1763587839725,-600.0,0.0001185,2]
[394451453,1763587839735,-151.0,0.000119,2]
[394451454,1763587839744,-151.0,0.000119,2]
[394451455,1763587839754,-420.0,0.00011943,2]
[394451456,1763587839763,-500.0,0.00011964,2]
[394451457,1763587839772,-1500.0,0.00011968,2]
[394451458,1763587839782,-1500.0,0.00011968,2]
[394451459,1763587839791,-1500.0,0.00011968,2]
[394451460,1763587839800,-1500.0,0.00011968,2]
[394451461,1763587839810,-1500.0,0.00011968,2]
[394451462,1763587839821,-1023.33490505,0.00011968,2]
[394451464,1763587839830,-1500.0,0.00011968,2]
[394451467,1763587839839,-614.9217838,0.00011968,2]
[394451468,1763587839848,-1500.0,0.00011968,2]
[394451470,1763587839857,-1500.0,0.00011968,2]
[394451471,1763587839866,-1500.0,0.00011968,2]
[394451472,1763587839876,-2018.24753352,0.00011986,2]
[394451473,1763587839885,-1000.0,0.00012031,2]
[394451474,1763587839894,-180.54,0.00012031,2]
[394451475,1763587839904,-180.52,0.00012031,2]
[394451476,1763587839914,-442.43214923,0.00012043,2]
[394451477,1763587839924,-151.0,0.000121,2]
[394451478,1763587839934,-151.0,0.000121,2]
[394451479,1763587839943,-2018.24753352,0.00012105,2]
[394451480,1763587839952,-194.44,0.00012143,2]
[394451481,1763587839961,-194.44,0.00012155,2]
[394451482,1763587839970,-194.44,0.00012167,2]
[394451483,1763587839979,-151.0,0.000122,2]
[394451484,1763587839989,-2018.24753352,0.00012223,2]
[394451485,1763587839998,-500.0,0.00012238,2]
[394451486,1763587840007,-183.42,0.00012329,2]
[394451487,1763587840016,-152.85,0.00012329,2]
[394451488,1763587840025,-764.29,0.00012329,2]
[394451489,1763587840035,-2018.24753352,0.00012342,2]
[394451490,1763587840045,-151.0,0.000124,2]
[394451491,1763587840056,-151.0,0.000124,2]
[394451492,1763587840067,-28852.5349844,0.00012411,2]
[394451493,1763587840077,-263.55825866,0.00012422,2]
[394451494,1763587840087,-525.57989844,0.00012439,2]
[394451495,1763587840096,-946.0438172,0.00012439,2]
[394451496,1763587840105,-1681.85567502,0.00012439,2]
[394451497,1763587840114,-311.28513258,0.00012439,2]
[394451498,1763587840124,-355.75443723,0.00012439,2]
[394451499,1763587840134,-2018.24753352,0.0001246,2]
[394451500,1763587840143,-9765.69477231,0.000125,2]
[394451501,1763587840152,-462.90605611,0.00012512,2]
[394451502,1763587840161,-2000.0,0.00012516,2]
[394451503,1763587840170,-2000.0,0.00012516,2]
[394451504,1763587840179,-2147.22031248,0.00012516,2]
[394451505,1763587840187,-2000.0,0.00012516,2]
[394451506,1763587840196,-1313.70451687,0.00012516,2]
[394451507,1763587840205,-2000.0,0.00012516,2]
[394451508,1763587840214,-524.86410953,0.00012516,2]
[394451509,1763587840223,-2000.0,0.00012516,2]
[394451510,1763587840232,-501.46943294,0.00012516,2]
[394451511,1763587840241,-389.79718925,0.00012578,2]
[394451512,1763587840250,-1092.75703038,0.00012618,2]
[394451513,1763587840259,-151.0,0.000127,2]
[394451514,1763587840269,-1671.06438555,0.0001272,2]
[394451515,1763587840279,-1898.65089539,0.0001283,2]
[394451516,1763587840288,-258.85556229,0.00012871,2]
[394451517,1763587840297,-1034.38682692,0.00012871,2]
[394451518,1763587840306,-273.67076961,0.00012871,2]
[394451519,1763587840315,-151.0,0.000129,2]
[394451520,1763587840328,-9806.31977473,0.000129,2]
[394451521,1763587840337,-701.63494065,0.00012951,2]
[394451522,1763587840346,-7095.2689233,0.00013,2]
[394451523,1763587840355,-720.0,0.00013035,2]
[394451524,1763587840364,-2500.0,0.00013064,2]
[394451525,1763587840374,-2500.0,0.00013064,2]
[394451526,1763587840383,-2500.0,0.00013064,2]
[394451527,1763587840392,-1955.285,0.00013064,2]
[394451528,1763587840401,-2500.0,0.00013064,2]
[394451529,1763587840410,-587.0,0.00013126,2]
[394451530,1763587840419,-151.0,0.000132,2]
[394451531,1763587840428,-1093.58839535,0.00013324,2]
[394451532,1763587840437,-1247.3510056,0.0001335,2]
[394451533,1763587840447,-379.96802637,0.00013354,2]
[394451534,1763587840456,-524.09305456,0.0001339,2]
[394451535,1763587840465,-151.0,0.000134,2]
[394451536,1763587840474,-1183.52681196,0.00013548,2]
[394451537,1763587840483,-296.17788087,0.00013548,2]
[394451538,1763587840491,-946.31080594,0.00013612,2]
[394451539,1763587840500,-3000.0,0.00013612,2]
[394451540,1763587840510,-3000.0,0.00013612,2]
[394451541,1763587840519,-1004.43111579,0.00013612,2]
[394451542,1763587840528,-500.0,0.00013698,2]
[394451543,1763587840537,-500.0,0.00013698,2]
[394451544,1763587840546,-500.0,0.00013698,2]
[394451545,1763587840555,-500.0,0.00013698,2]
[394451546,1763587840565,-500.0,0.00013698,2]
[394451547,1763587840578,-633.74296532,0.00013698,2]
[394451548,1763587840587,-500.0,0.00013698,2]
[394451549,1763587840597,-501.22334387,0.00013698,2]
[394451550,1763587840608,-500.0,0.00013698,2]
[394451551,1763587840617,-500.0,0.00013698,2]
[394451552,1763587840627,-500.0,0.00013698,2]
[394451553,1763587840636,-500.0,0.00013698,2]
[394451554,1763587840646,-500.0,0.00013698,2]
[394451555,1763587840656,-500.0,0.00013698,2]
[394451556,1763587840665,-500.0,0.00013698,2]
[394451557,1763587840674,-500.0,0.00013698,2]
[394451558,1763587840683,-500.0,0.00013698,2]
[394451559,1763587840692,-500.0,0.00013698,2]
[394451560,1763587840702,-500.0,0.00013698,2]
[394451561,1763587840711,-427.75704418,0.00013698,2]
[394451562,1763587840721,-11552.6,0.00013698,2]
[394451563,1763587840731,-11552.6,0.00013698,2]
[394451564,1763587840740,-11552.6,0.00013698,2]
[394451565,1763587840749,-11552.6,0.00013698,2]
[394451566,1763587840759,-11552.6,0.00013698,2]
[394451567,1763587840768,-11552.6,0.00013698,2]
[394451568,1763587840777,-11552.6,0.00013698,2]
[394451569,1763587840787,-11552.6,0.00013698,2]
[394451570,1763587840796,-11552.6,0.00013698,2]
[394451571,1763587840805,-11552.6,0.00013698,2]
[394451572,1763587840815,-11552.6,0.00013698,2]
[394451573,1763587840828,-11552.6,0.00013698,2]
[394451574,1763587840838,-11552.6,0.00013698,2]
[394451575,1763587840847,-11552.6,0.00013698,2]
[394451576,1763587840857,-11552.6,0.00013698,2]
[394451577,1763587840866,-11552.6,0.00013698,2]
[394451578,1763587840875,-11552.6,0.00013698,2]
[394451579,1763587840884,-11552.6,0.00013698,2]
[394451580,1763587840894,-11552.6,0.00013698,2]
[394451581,1763587840903,-11552.6,0.00013698,2]
[394451582,1763587840913,-11552.6,0.00013698,2]
[394451583,1763587840922,-11552.6,0.00013698,2]
[394451584,1763587840931,-11552.6,0.00013698,2]
[394451585,1763587840940,-11552.83475638,0.00013698,2]
[394451586,1763587840949,-520.83,0.00013698,2]
[394451587,1763587840959,-520.83,0.00013698,2]
[394451588,1763587840969,-520.83,0.00013698,2]
[394451589,1763587840979,-520.83,0.00013698,2]
[394451590,1763587840988,-520.83,0.00013698,2]
[394451591,1763587840999,-520.83,0.00013698,2]
[394451592,1763587841008,-520.83,0.00013698,2]
[394451593,1763587841017,-520.83,0.00013698,2]
[394451594,1763587841027,-520.83,0.00013698,2]
[394451595,1763587841037,-520.83,0.00013698,2]
[394451596,1763587841052,-520.83,0.00013698,2]
[394451597,1763587841062,-520.83,0.00013698,2]
[394451598,1763587841073,-520.83,0.00013698,2]
[394451599,1763587841084,-520.83,0.00013698,2]
[394451600,1763587841094,-520.83,0.00013698,2]
[394451601,1763587841103,-520.83,0.00013698,2]
[394451602,1763587841112,-520.83,0.00013698,2]
[394451603,1763587841123,-520.83,0.00013698,2]
[394451604,1763587841133,-520.83,0.00013698,2]
[394451605,1763587841142,-520.83,0.00013698,2]
[394451606,1763587841154,-520.83,0.00013698,2]
[394451607,1763587841163,-520.83,0.00013698,2]
[394451608,1763587841173,-520.83,0.00013698,2]
[394451609,1763587841182,-520.91,0.00013698,2]
[394451610,1763587841191,-2325.85,0.00013698,2]
[394451611,1763587841200,-2325.85,0.00013698,2]
[394451612,1763587841209,-2325.85,0.00013698,2]
[394451613,1763587841218,-2325.85,0.00013698,2]
[394451614,1763587841227,-2325.85,0.00013698,2]
[394451615,1763587841236,-2325.85,0.00013698,2]
[394451616,1763587841246,-2325.85,0.00013698,2]
[394451617,1763587841255,-2325.85,0.00013698,2]
[394451618,1763587841264,-2325.85,0.00013698,2]
[394451619,1763587841273,-2325.85,0.00013698,2]
[394451620,1763587841282,-2325.85,0.00013698,2]
[394451621,1763587841291,-2325.85,0.00013698,2]
[394451622,1763587841301,-2325.85,0.00013698,2]
[394451623,1763587841310,-2325.85,0.00013698,2]
[394451624,1763587841321,-2325.85,0.00013698,2]
[394451625,1763587841330,-2325.85,0.00013698,2]
[394451626,1763587841339,-2325.85,0.00013698,2]
[394451627,1763587841349,-2325.85,0.00013698,2]
[394451628,1763587841358,-2325.85,0.00013698,2]
[394451629,1763587841367,-2325.85,0.00013698,2]
[394451630,1763587841376,-2325.85,0.00013698,2]
[394451631,1763587841386,-2325.85,0.00013698,2]
[394451632,1763587841395,-2325.85,0.00013698,2]
[394451633,1763587841404,-2325.99104056,0.00013698,2]
[394451634,1763587841412,-1000.0,0.00013699,2]
[394451635,1763587841422,-2023.6736416,0.00013699,2]
[394451636,1763587841431,-1277.192502,0.00013699,2]
[394451637,1763587841439,-243.987947,0.00013699,2]
[394451638,1763587841449,-153.371539,0.00013699,2]
[394451639,1763587841458,-151.0,0.00013699,2]
[394451640,1763587841467,-151.0,0.00013699,2]
[394451641,1763587841478,-151.0,0.00013699,2]
[394451642,1763587841490,-151.0,0.00013699,2]
[394451643,1763587841499,-192.61634,0.00013699,2]
[394451644,1763587841509,-151.0,0.00013699,2]
[394451645,1763587841522,-160.0,0.00013699,2]
[394451646,1763587841531,-1948.98594625,0.00013748,2]
[394451647,1763587841544,-28852.5349844,0.0001376,2]
[394451648,1763587841562,-683.94244746,0.00013915,2]
[394451649,1763587841573,-313.58707305,0.00014025,2]
[394451650,1763587841582,-1812.06349669,0.0001416,2]
[394451651,1763587841592,-1418.20604705,0.0001416,2]
[394451652,1763587841602,-260.0,0.00014247,2]
[394451653,1763587841612,-864.0,0.00014339,2]
[394451654,1763587841621,-402.48639983,0.00014413,2]
[394451655,1763587841630,-500.0,0.00014413,2]
[394451656,1763587841640,-303.76206083,0.00014422,2]
[394451657,1763587841649,-13037.96581305,0.00014423,2]
[394451658,1763587841659,-823.0,0.00014425,2]
[394451659,1763587841669,-217.20744332,0.00014434,2]
[394451660,1763587841679,-500.0,0.00014464,2]
[394451661,1763587841688,-500.0,0.00014464,2]
[394451662,1763587841698,-500.0,0.00014464,2]
[394451663,1763587841707,-500.0,0.00014464,2]
[394451664,1763587841716,-500.0,0.00014464,2]
[394451665,1763587841727,-281.93100216,0.00014464,2]
[394451666,1763587841736,-500.0,0.00014464,2]
[394451667,1763587841745,-509.88878154,0.00014464,2]
[394451668,1763587841755,-1215.89768437,0.00014475,2]
[394451669,1763587841764,-500.0,0.00014512,2]
[394451670,1763587841774,-500.0,0.00014512,2]
[394451671,1763587841783,-506.01992005,0.00014512,2]
[394451672,1763587841792,-200.0,0.0001452,2]
[394451673,1763587841802,-57115.1284685,0.00014521,2]
[394451674,1763587841812,-500.0,0.00014523,2]
[394451675,1763587841822,-199.05805664,0.00014561,2]
[394451676,1763587841832,-500.0,0.00014561,2]
[394451677,1763587841842,-500.0,0.00014568,2]
[394451678,1763587841851,-500.0,0.00014568,2]
[394451679,1763587841860,-500.0,0.00014684,2]
[394451680,1763587841869,-500.0,0.00014684,2]
[394451681,1763587841878,-500.0,0.00014684,2]
[394451682,1763587841889,-500.0,0.00014684,2]
[394451683,1763587841898,-500.0,0.00014684,2]
[394451684,1763587841907,-500.0,0.00014684,2]
[394451685,1763587841916,-500.0,0.0001469,2]
[394451686,1763587841925,-500.0,0.0001469,2]
[394451687,1763587841935,-708.533825,0.00014734,2]
[394451688,1763587841945,-390.97339797,0.00014746,2]
[394451689,1763587841954,-503.66722272,0.00014774,2]
[394451690,1763587841963,-500.0,0.00014774,2]
[394451691,1763587841972,-501.3906317,0.00014774,2]
[394451692,1763587841981,-500.0,0.00014774,2]
[394451693,1763587841991,-500.0,0.00014774,2]
[394451694,1763587842000,-501.34286782,0.00014774,2]
[394451695,1763587842009,-500.0,0.00014774,2]
[394451696,1763587842018,-500.0,0.00014774,2]
[394451697,1763587842027,-500.0,0.00014774,2]
[394451698,1763587842036,-507.64775567,0.00014774,2]
[394451699,1763587842048,-633.69331593,0.00014774,2]
[394451700,1763587842057,-500.0,0.00014774,2]
[394451701,1763587842067,-582.20867695,0.00014774,2]
[394451702,1763587842077,-500.0,0.00014774,2]
[394451703,1763587842088,-500.0,0.00014774,2]